fUSD/lending_fUSD_20250716
["ID","MTS","AMOUNT","RATE_DAILY","PERIOD"]
[372467279,1752654668788,-237.777039,0.00022024,7]
[372467280,1752654668797,-151.0,0.00022024,7]
[372467281,1752654668806,-224.02807,0.00022024,7]
[372467282,1752654668815,-224.02807,0.00022024,7]
[372467283,1752654668824,-151.0,0.00022024,7]
[372467284,1752654668834,-156.585107,0.00022024,7]
[372467285,1752654668844,-156.585107,0.00022024,7]
[372467286,1752654668853,-181.944592,0.00022024,7]
[372467287,1752654668863,-181.944592,0.00022024,7]
[372467288,1752654668872,-275.280798,0.00022024,7]
[372467289,1752654668880,-275.280798,0.00022024,7]
[372467290,1752654668890,-760.885495,0.00022024,7]
[372467291,1752654668899,-760.885495,0.00022024,7]
[372467292,1752654668907,-151.0,0.00022024,7]
[372467293,1752654668916,-1258.33853,0.00022024,7]
[372467294,1752654668926,-1258.33853,0.00022024,7]
[372467295,1752654668936,-106926.90055425,0.00022024,2]
[372467296,1752654670929,-1017.99338855,0.00021862,2]
[372467297,1752654670941,-1374.42,0.00021917,2]
[372467298,1752654670950,-460.0,0.00021917,2]
[372467299,1752654670961,-460.0,0.00021917,2]
[372467300,1752654670971,-460.0,0.00021917,2]
[372467301,1752654670981,-20981.48048323,0.00022024,2]
[372467302,1752654670997,-505.3265493,0.00022024,2]
[372467303,1752654671032,-26523.23089672,0.00022024,2]
[372467304,1752654671042,-3602.5909638,0.00022024,2]
[372467305,1752654671052,-1434.200112,0.00022024,2]
[372467306,1752654671062,-17121.4643139,0.00022024,2]
[372467307,1752654671072,-21161.9090737,0.00022024,2]
[372467308,1752654671082,-529.36,0.00022026,2]
[372467309,1752654671092,-150.0,0.00022026,2]
[372467310,1752654671102,-877.05,0.00022026,2]
[372467311,1752654671112,-150.0,0.00022026,2]
[372467312,1752654671123,-205.49104,0.00022027,7]
[372467313,1752654671133,-205.49104,0.00022027,7]
[372467314,1752654671546,-280.778868,0.00022027,7]
[372467315,1752654671556,-280.778868,0.00022027,7]
[372467316,1752654671567,-512.641004,0.00022027,7]
[372467317,1752654671577,-163.975848,0.00022027,7]
[372467318,1752654671587,-163.975848,0.00022027,7]
[372467319,1752654671597,-31277.0,0.00022027,2]
[372467320,1752654671607,-500.0,0.00022037,2]
[372467321,1752654671617,-500.0,0.00022038,2]
[372467322,1752654671626,-500.0,0.00022038,2]
[372467323,1752654671636,-1470.48,0.00022038,2]
[372467324,1752654671646,-1536.35,0.00022038,2]
[372467325,1752654671655,-1536.35,0.00022038,2]
[372467326,1752654671665,-1536.35,0.00022038,2]
[372467327,1752654671674,-1536.35,0.00022038,2]
[372467328,1752654671684,-1536.35,0.00022038,2]
[372467329,1752654671694,-1536.35,0.00022038,2]
[372467330,1752654671704,-1536.45909789,0.00022038,2]
[372467331,1752654671715,-280.778868,0.00022039,7]
[372467332,1752654671725,-280.778868,0.00022039,7]
[372467333,1752654671735,-512.641004,0.00022039,7]
[372467334,1752654671745,-790.278599,0.00022039,7]
[372467335,1752654671754,-151.0,0.00022039,7]
[372467336,1752654671764,-163.975848,0.00022039,7]
[372467337,1752654671774,-163.975848,0.00022039,7]
[372467338,1752654671783,-226.184216,0.00022039,7]
[372467339,1752654671793,-226.184216,0.00022039,7]
[372467340,1752654671803,-250.909974,0.00022039,7]
[372467341,1752654671812,-237.777039,0.00022039,7]
[372467342,1752654671823,-250.909974,0.00022039,7]
[372467343,1752654671833,-237.777039,0.00022039,7]
[372467344,1752654671842,-209.803661,0.00022039,7]
[372467345,1752654671852,-224.02807,0.00022039,7]
[372467346,1752654671862,-224.02807,0.00022039,7]
[372467347,1752654671872,-151.0,0.00022039,7]
[372467348,1752654671882,-156.585107,0.00022039,7]
[372467349,1752654671891,-156.585107,0.00022039,7]
[372467350,1752654671901,-151.0,0.00022039,7]
[372467351,1752654671911,-151.0,0.00022039,7]
[372467352,1752654671921,-181.944592,0.00022039,7]
[372467353,1752654671931,-181.944592,0.00022039,7]
[372467354,1752654671941,-275.280798,0.00022039,7]
[372467355,1752654671951,-275.280798,0.00022039,7]
[372467356,1752654671963,-760.885495,0.00022039,7]
[372467357,1752654671973,-760.885495,0.00022039,7]
[372467358,1752654671983,-151.0,0.00022039,7]
[372467359,1752654671993,-1258.33853,0.00022039,7]
[372467360,1752654672003,-1258.33853,0.00022039,7]
[372467361,1752654672013,-122270.7808386,0.00022039,2]
[372467362,1752654672022,-89604.6231937,0.00022039,2]
[372467363,1752654672032,-56938.4655487,0.00022039,2]
[372467364,1752654672041,-2843.0380417,0.00022039,2]
[372467365,1752654672051,-2083.4851197,0.00022039,2]
[372467366,1752654672061,-1323.9321977,0.00022039,2]
[372467367,1752654672070,-1409.0656427,0.00022039,2]
[372467368,1752654672080,-1383.9311734,0.00022039,2]
[372467369,1752654672090,-1358.7967042,0.00022039,2]
[372467370,1752654672100,-16821.409311,0.00022039,2]
[372467371,1752654672110,-16521.3543082,0.00022039,2]
[372467372,1752654672121,-16221.2993053,0.00022039,2]
[372467373,1752654672132,-20791.04496,0.00022039,2]
[372467374,1752654672142,-4938.56576679,0.00022039,2]
[372467375,1752654673403,-1017.99338855,0.00021877,2]
[372467376,1752654673414,-500.0,0.000219,2]
[372467377,1752654673423,-460.0,0.00021917,2]
[372467378,1752654673432,-3140.54968904,0.00021917,2]
[372467379,1752654674140,-875.35624491,0.00021917,2]
[372467380,1752654674156,-634.40000001,0.00021917,2]
[372467381,1752654674208,-2859.48093959,0.00021917,2]
[372467382,1752654674221,-900.03312645,0.00021917,2]
[372467383,1752654674230,-460.0,0.00021917,2]
[372467384,1752654674240,-637.72,0.00021917,2]
[372467385,1752654674249,-460.0,0.00021917,2]
[372467386,1752654674259,-460.0,0.00021917,2]
[372467387,1752654674268,-460.0,0.00021917,2]
[372467388,1752654674278,-460.0,0.00021917,2]
[372467389,1752654674287,-460.0,0.00021917,2]
[372467390,1752654674297,-460.0,0.00021917,2]
[372467391,1752654674307,-15481.61507961,0.00022039,2]
[372467392,1752654674317,-20049.3167327,0.00022039,2]
[372467393,1752654674327,-151.0,0.00022043,7]
[372467394,1752654674337,-167.614543,0.00022043,7]
[372467395,1752654674347,-167.614543,0.00022043,7]
[372467396,1752654674356,-205.49104,0.00022043,7]
[372467397,1752654674366,-113.44577385,0.00022043,7]
[372467398,1752654674378,-92.04526615,0.00022043,7]
[372467399,1752654674388,-195.50279791,0.00022044,2]
[372467400,1752654697212,499.999999,0.0003013,120]
[372467401,1752654821740,1001.13,0.00030137,120]
[372467404,1752654881341,160.05,0.00013699,2]
[372467406,1752654918191,964.72804248,0.000301,120]
[372467410,1752655058376,1380.0,0.00030137,120]
[372467424,1752655351569,150.0,0.00029139,120]
[372467425,1752655471353,150.0,0.00028896,120]
[372467426,1752655526031,179.2,0.00025976,120]
[372467431,1752655591664,150.0,0.00028588,120]
[372467455,1752655710643,150.0,0.00028772,120]
[372467460,1752655831447,-155.0,0.00019825,4]
[372467462,1752655831457,-360.0,0.000199,2]
[372467464,1752655831502,-931.31347468,0.000199,2]
[372467465,1752655831512,-300.0,0.00019999,2]
[372467466,1752655831521,-300.0,0.00019999,2]
[372467467,1752655831530,-1200.0,0.00019999,2]
[372467468,1752655831539,-487.60532732,0.0002,2]
[372467469,1752655831549,-1000.0,0.0002,2]
[372467470,1752655831559,-1000.0,0.0002,2]
[372467471,1752655831568,-422.68588422,0.0002,2]
[372467472,1752655831592,-302.16553061,0.0002,2]
[372467473,1752655831612,-1775.14858517,0.0002,2]
[372467474,1752655831622,-2500.0,0.0002,2]
[372467475,1752655831632,-1000.0,0.0002,2]
[372467476,1752655831641,-2500.0,0.0002,2]
[372467477,1752655831652,-2500.0,0.0002,2]
[372467478,1752655831662,-2500.0,0.0002,2]
[372467479,1752655831672,-4999.999999,0.0002,2]
[372467480,1752655831682,-1291.31347463,0.00020038,2]
[372467481,1752655831691,-1291.31347463,0.00020176,2]
[372467482,1752655831701,-1291.31347463,0.00020314,3]
[372467483,1752655831711,-1291.31347463,0.00020452,3]
[372467484,1752655831720,-1000.0,0.00020574,2]
[372467485,1752655831730,-1291.31347463,0.0002059,3]
[372467486,1752655831739,-1291.31347463,0.00020728,3]
[372467487,1752655831749,-179.2,0.00020781,2]
[372467488,1752655831759,-174.63,0.00020844,2]
[372467489,1752655831768,-442.83917093,0.00020848,2]
[372467490,1752655831778,-286.75958339,0.00020848,2]
[372467491,1752655831788,-207.4,0.00020848,2]
[372467492,1752655831798,-151.09993942,0.00020848,2]
[372467493,1752655831807,-1291.31347463,0.00020866,4]
[372467494,1752655831817,-699.0,0.00021,2]
[372467495,1752655831827,-1291.31347463,0.00021003,4]
[372467497,1752655831836,-1291.31347463,0.00021141,4]
[372467499,1752655831846,-1291.31347463,0.00021279,5]
[372467501,1752655831855,-928.84,0.0002137,2]
[372467503,1752655831864,-1291.31347463,0.00021417,5]
[372467505,1752655831873,-1291.31347463,0.00021555,5]
[372467507,1752655831883,-1504.14374983,0.0002158,2]
[372467509,1752655831893,-523.30072,0.00021603,8]
[372467511,1752655831902,-9024.84,0.00021617,2]
[372467513,1752655831911,-1291.31347463,0.00021693,5]
[372467515,1752655831921,-420.0,0.00021777,2]
[372467517,1752655831931,-420.0,0.00021777,2]
[372467519,1752655831940,-169.87412524,0.00021786,2]
[372467520,1752655831949,-1000.0,0.000218,5]
[372467521,1752655831959,-200.0,0.00021805,2]
[372467522,1752655831971,-5000.0,0.00021817,2]
[372467523,1752655831980,-735.71996138,0.00021817,2]
[372467524,1752655831990,-407.19735542,0.00021817,2]
[372467525,1752655831999,-996.9317991,0.00021817,2]
[372467526,1752655832009,-1369.42767,0.0002182,2]
[372467527,1752655832018,-1291.31347463,0.00021831,6]
[372467529,1752655832027,-407.19735542,0.00021832,2]
[372467532,1752655832036,-1333.3578,0.00021836,2]
[372467534,1752655832045,-407.19735542,0.00021847,2]
[372467536,1752655832054,-407.19735542,0.00021863,2]
[372467540,1752655832064,-308.0,0.00021863,2]
[372467542,1752655832073,-153.06,0.0002187,2]
[372467544,1752655832083,-153.06,0.0002187,2]
[372467546,1752655832092,-407.19735542,0.00021878,2]
[372467548,1752655832101,-237.23945736,0.00021879,2]
[372467549,1752655832111,-265.71364753,0.00021879,2]
[372467551,1752655832121,-407.86690009,0.00021879,2]
[372467553,1752655832130,-500.0,0.00021879,2]
[372467555,1752655832139,-182.61806116,0.00021879,2]
[372467557,1752655832149,-518.92641386,0.00021879,2]
[372467559,1752655832158,-186107.97840279,0.0002188,2]
[372467563,1752655832189,-37387.79484155,0.0002188,2]
[372467566,1752655832211,-415.69908288,0.0002188,2]
[372467568,1752655832223,-939.62713897,0.0002188,2]
[372467570,1752655832234,-1588.6969566,0.0002188,2]
[372467572,1752655832245,-4604.81396847,0.0002188,2]
[372467574,1752655832257,-1597.045962,0.0002188,2]
[372467600,1752655837626,-157.56693796,0.00021786,2]
[372467601,1752655837637,-31630.41247697,0.0002188,2]
[372467602,1752655837732,-24534.972,0.0002188,2]
[372467749,1752655839462,-2701.54267435,0.0002188,2]
[372467760,1752655839515,-483175.8694237,0.0002188,2]
[372467766,1752655839556,-713.97604,0.0002188,2]
[372467769,1752655839583,-98278.13102332,0.0002188,2]
[372467791,1752655839780,-1202.47185286,0.0002188,2]
[372467793,1752655839793,-1187.65,0.0002188,2]
[372468077,1752655842617,-627.51999998,0.0002188,2]
[372468100,1752655842827,-811.83974688,0.0002188,2]
[372468102,1752655842839,-16787.12280154,0.0002188,2]
[372468104,1752655842850,-36719.25280863,0.0002188,2]
[372468366,1752655845710,-830.54956271,0.0002188,2]
[372469068,1752655884255,160.05,0.00013699,2]
[372469096,1752656191764,150.0,0.00030095,120]
[372469097,1752656193111,-174.71,0.00017515,2]
[372469098,1752656196799,-280.13936164,0.00017515,2]
[372469099,1752656198508,-79.15063836,0.00017515,2]
[372469100,1752656252945,150.0,0.00028569,120]
[372469101,1752656310597,150.0,0.00028875,120]
[372469105,1752656557723,187.0,0.00017512,2]
[372469120,1752656790577,150.0,0.00027233,120]
[372469145,1752656851291,150.0,0.00026923,120]
[372469159,1752656911262,150.0,0.00028932,120]
[372469160,1752656928043,164.37,0.00013699,2]
[372469163,1752656971297,150.0,0.00030031,120]
[372469175,1752657031707,-603.80221892,0.00020059,2]
[372469176,1752657031719,-478.19778108,0.00020059,2]
[372469177,1752657031728,-848.95174925,0.00020827,2]
[372469178,1752657031760,-151.04825075,0.00020827,2]
[372469179,1752657031769,-1442.5310493,0.00020832,2]
[372469180,1752657031781,-1649.5089507,0.00020832,2]
[372469181,1752657031791,-252.41,0.00020932,2]
[372469182,1752657031803,-185.05916341,0.00021,2]
[372469183,1752657031812,-292.02188589,0.00021,2]
[372469184,1752657031824,-378.97811411,0.00021,2]
[372469185,1752657031833,-754.0,0.00021558,2]
[372469186,1752657031843,-1492.659,0.00021558,2]
[372469187,1752657031853,-1200.0,0.00021602,2]
[372469188,1752657031863,-643.043908,0.00021603,8]
[372469189,1752657031872,-207.4,0.00021647,2]
[372469190,1752657031884,-454.84936164,0.0002167,2]
[372469191,1752657031894,-300.0,0.00021716,2]
[372469192,1752657031905,-300.0,0.00021716,2]
[372469193,1752657031915,-830.32658054,0.00021717,2]
[372469194,1752657031925,-744.982,0.0002178,2]
[372469195,1752657031935,-880.7013,0.0002178,2]
[372469196,1752657031944,-203.59867771,0.0002178,2]
[372469197,1752657031956,-155.92582075,0.0002178,2]
[372469198,1752657031967,-1105.7404,0.0002178,2]
[372469199,1752657031976,-158.94985632,0.0002178,2]
[372469200,1752657031986,-150.0,0.00021797,2]
[372469201,1752657031996,-203.59867771,0.00021799,2]
[372469202,1752657032006,-150.0,0.000218,2]
[372469203,1752657032016,-5000.0,0.00021817,2]
[372469204,1752657032027,-675.85414223,0.00021817,2]
[372469206,1752657032038,-158.8409023,0.00021817,2]
[372469208,1752657032050,-830.77649925,0.00021817,2]
[372469210,1752657032062,-203.59867771,0.00021819,2]
[372469221,1752657032219,-155.92582073,0.00021824,2]
[372469224,1752657032246,-150.0,0.00021824,2]
[372469225,1752657032257,-150.0,0.00021825,2]
[372469226,1752657032274,-150.0,0.00021834,2]
[372469227,1752657032284,-203.59867771,0.00021838,2]
[372469228,1752657032294,-150.0,0.00021845,2]
[372469229,1752657032307,-203.59867771,0.00021857,2]
[372469230,1752657032317,-155.92582073,0.00021867,2]
[372469231,1752657032327,-200.0,0.00021868,2]
[372469232,1752657032337,-203.59867771,0.00021877,2]
[372469233,1752657032352,-47487.00871715,0.0002188,2]
[372469234,1752657032390,-3076.96368425,0.0002188,2]
[372469238,1752657037757,-201.92,0.00020901,2]
[372469239,1752657037768,-8403.92745965,0.0002188,2]
[372469426,1752657040018,-589.38164926,0.0002188,2]
[372469430,1752657040050,-885.13797886,0.0002188,2]
[372469432,1752657040064,-1352.91388569,0.0002188,2]
[372469983,1752657045869,-3319.45534,0.0002188,2]
[372470474,1752657271449,150.0,0.00027138,120]
[372470476,1752657451808,150.0,0.00027111,120]
[372470484,1752657570583,150.0,0.00028419,120]
[372470485,1752657613860,474.64,0.00025711,120]
[372470486,1752657614091,474.64,0.00028282,120]
[372470488,1752657667395,7000.0,0.00030136,120]
[372470496,1752658011167,-4934.92683088,0.00020397,2]
[372470531,1752658061270,162.74,0.00013699,2]
[372470535,1752658109748,760.0,0.0003013,120]
[372470537,1752658121137,5891.14331,0.000151,2]
[372470538,1752658121161,8000.0,0.000151,2]
[372470539,1752658121186,8000.0,0.000151,2]
[372470540,1752658121210,8000.0,0.000151,2]
[372470541,1752658121234,7193.77949453,0.000151,2]
[372470561,1752658236722,-1244.50099,0.00020397,2]
[372470620,1752658238012,-372.97035456,0.00020397,2]
[372470621,1752658238024,-7500.99182456,0.00020397,2]
[372470622,1752658238034,-250.0,0.0002044,2]
[372470623,1752658238043,-230.29,0.00020455,2]
[372470624,1752658238052,-300.0,0.00020482,2]
[372470625,1752658238062,-300.0,0.00020482,2]
[372470626,1752658238072,-404.36,0.00020483,2]
[372470627,1752658238081,-250.0,0.00020497,2]
[372470628,1752658238091,-1000.0,0.00020561,2]
[372470629,1752658238103,-474.64,0.00020569,2]
[372470630,1752658238113,-985.0,0.00020591,2]
[372470631,1752658238122,-207.4,0.00020878,2]
[372470632,1752658238133,-3995.61090714,0.00020878,2]
[372470633,1752658238143,-390.33,0.00020903,2]
[372470634,1752658238153,-9954.08043063,0.00020905,2]
[372470635,1752658238163,-390.33,0.00020914,2]
[372470636,1752658238174,-390.33,0.00020925,2]
[372470637,1752658238185,-390.33,0.00020936,2]
[372470638,1752658238195,-390.33,0.00020947,2]
[372470639,1752658238204,-390.33,0.00020958,2]
[372470640,1752658238215,-390.33,0.00020969,2]
[372470641,1752658238224,-390.33,0.0002098,2]
[372470643,1752658238233,-329.77291148,0.00020987,2]
[372470645,1752658238242,-160.0,0.00020987,2]
[372470647,1752658238253,-642.43812472,0.00020987,2]
[372470648,1752658238265,-390.33,0.00020991,2]
[372470650,1752658238277,-5747.79053802,0.00021,2]
[372470653,1752658238287,-645.0,0.00021,2]
[372470654,1752658238297,-1036.18583062,0.00021,2]
[372470657,1752658238307,-390.33,0.00021002,2]
[372470659,1752658238317,-526.0,0.00021012,2]
[372470661,1752658238328,-390.33,0.00021013,2]
[372470662,1752658238340,-390.33,0.00021024,2]
[372470664,1752658238352,-390.33,0.00021035,2]
[372470666,1752658238362,-390.33,0.00021046,2]
[372470668,1752658238372,-390.33,0.00021057,2]
[372470670,1752658238382,-390.33,0.00021069,2]
[372470671,1752658238392,-390.33,0.0002108,2]
[372470672,1752658238402,-390.33,0.00021091,2]
[372470674,1752658238412,-390.33,0.00021102,2]
[372470675,1752658238421,-390.33,0.00021113,2]
[372470677,1752658238431,-214.68,0.00021128,2]
[372470679,1752658238441,-2345.21851058,0.00021437,2]
[372470681,1752658238451,-230.29,0.00021477,2]
[372470683,1752658238461,-2013.01,0.000215,2]
[372470684,1752658238470,-314.52813956,0.00021571,2]
[372470686,1752658238480,-535.869924,0.00021603,8]
[372470688,1752658238489,-168.0,0.00021725,2]
[372470690,1752658238499,-212.0,0.0002176,2]
[372470692,1752658238508,-158.66742282,0.00021769,2]
[372470694,1752658238518,-150.0,0.0002177,2]
[372470695,1752658238527,-156.40581131,0.00021773,2]
[372470697,1752658238538,-1292.67142322,0.00021779,2]
[372470716,1752658238722,-414.9750677,0.00021779,2]
[372470718,1752658238731,-273.9373,0.0002178,2]
[372470720,1752658238741,-5000.0,0.0002178,2]
[372470722,1752658238751,-1681.94806411,0.0002178,2]
[372470724,1752658238763,-1104.32883589,0.0002178,2]
[372470726,1752658238774,-7164.0615,0.0002178,2]
[372470728,1752658238783,-153.80152789,0.0002178,2]
[372470730,1752658238793,-167.05,0.00021781,2]
[372470731,1752658238803,-1707.64649088,0.00021783,2]
[372470733,1752658238813,-153.80152789,0.00021783,2]
[372470735,1752658238823,-153.80152789,0.00021787,2]
[372470737,1752658238833,-1416.07915407,0.00021787,2]
[372470740,1752658238844,-291.56733681,0.00021787,2]
[372470742,1752658238854,-153.80152789,0.0002179,2]
[372470744,1752658238864,-150.0,0.00021791,2]
[372470746,1752658238873,-1707.64649088,0.00021792,2]
[372470748,1752658238883,-168.0,0.00021793,2]
[372470750,1752658238893,-153.80152789,0.00021793,2]
[372470752,1752658238902,-1707.64649088,0.00021796,2]
[372470754,1752658238912,-983.05028867,0.00021796,2]
[372470755,1752658238921,-153.80152789,0.00021797,2]
[372470757,1752658238931,-485.18480909,0.000218,2]
[372470760,1752658238947,-1222.46168179,0.000218,2]
[372470762,1752658238956,-153.80152789,0.000218,2]
[372470764,1752658238966,-150.0,0.00021802,2]
[372470766,1752658238976,-879.2384617,0.00021802,2]
[372470768,1752658238986,-153.80152789,0.00021804,2]
[372470770,1752658238995,-1707.64649088,0.00021804,2]
[372470772,1752658239005,-983.05028867,0.00021805,2]
[372470774,1752658239014,-153.80152789,0.00021807,2]
[372470776,1752658239025,-1707.64649088,0.00021809,2]
[372470778,1752658239034,-1707.64649088,0.00021813,2]
[372470780,1752658239044,-983.05028867,0.00021813,2]
[372470782,1752658239054,-828768.30532446,0.00021816,2]
[372470784,1752658239063,-17666.49275776,0.00021816,2]
[372470786,1752658239073,-4236.4242957,0.00021817,4]
[372470788,1752658239083,-4236.4242957,0.00021817,4]
[372470790,1752658239092,-4236.4242957,0.00021817,4]
[372470792,1752658239103,-4236.4242957,0.00021817,4]
[372470794,1752658239112,-4236.4242957,0.00021817,4]
[372470796,1752658239122,-4236.4242957,0.00021817,4]
[372470798,1752658239131,-4236.4242957,0.00021817,4]
[372470800,1752658239141,-4236.4242957,0.00021817,4]
[372470802,1752658239151,-4236.4242957,0.00021817,4]
[372470804,1752658239160,-4236.4242957,0.00021817,4]
[372470805,1752658239169,-4236.4242957,0.00021817,4]
[372470807,1752658239179,-4236.4242957,0.00021817,4]
[372470809,1752658239189,-4236.4242957,0.00021817,4]
[372470811,1752658239199,-4236.4242957,0.00021817,4]
[372470813,1752658239208,-4236.4242957,0.00021817,4]
[372470815,1752658239218,-4236.4242957,0.00021817,4]
[372470817,1752658239228,-4236.4242957,0.00021817,4]
[372470819,1752658239237,-4320.06152741,0.00021817,4]
[372470821,1752658239247,-4320.06152741,0.00021817,4]
[372470823,1752658239257,-4320.06152741,0.00021817,4]
[372470826,1752658239266,-4320.06152741,0.00021817,4]
[372470828,1752658239276,-4320.06152741,0.00021817,4]
[372470829,1752658239285,-4320.06152741,0.00021817,4]
[372470831,1752658239295,-4320.06152741,0.00021817,4]
[372470833,1752658239304,-4320.06152741,0.00021817,4]
[372470835,1752658239314,-4320.06152741,0.00021817,4]
[372470837,1752658239323,-4320.06152741,0.00021817,4]
[372470840,1752658239334,-4320.06152741,0.00021817,4]
[372470842,1752658239343,-4320.06152741,0.00021817,4]
[372470844,1752658239352,-4320.06152741,0.00021817,4]
[372470846,1752658239361,-4320.06152741,0.00021817,4]
[372470848,1752658239372,-4320.06152741,0.00021817,4]
[372470850,1752658239382,-4320.06152741,0.00021817,4]
[372470851,1752658239391,-4320.06152741,0.00021817,4]
[372470853,1752658239401,-4628.4112438,0.00021817,4]
[372470855,1752658239411,-4628.4112438,0.00021817,4]
[372470857,1752658239420,-4628.4112438,0.00021817,4]
[372470859,1752658239429,-4628.4112438,0.00021817,4]
[372470861,1752658239439,-4628.4112438,0.00021817,4]
[372470863,1752658239448,-4628.4112438,0.00021817,4]
[372470865,1752658239458,-4628.4112438,0.00021817,4]
[372470868,1752658239467,-4628.4112438,0.00021817,4]
[372470870,1752658239477,-4628.4112438,0.00021817,4]
[372470871,1752658239486,-4628.4112438,0.00021817,4]
[372470874,1752658239497,-4628.4112438,0.00021817,4]
[372470876,1752658239507,-4628.4112438,0.00021817,4]
[372470878,1752658239516,-4628.4112438,0.00021817,4]
[372470879,1752658239527,-4628.4112438,0.00021817,4]
[372470882,1752658239541,-4628.4112438,0.00021817,4]
[372470883,1752658239550,-4628.4112438,0.00021817,4]
[372470885,1752658239560,-4628.4112438,0.00021817,4]
[372470888,1752658239569,-579.3035505,0.00021817,2]
[372470889,1752658239579,-160.9001406,0.00021817,2]
[372470891,1752658239588,-1707.64649088,0.00021817,2]
[372470894,1752658239599,-166.75489779,0.00021817,4]
[372470896,1752658239608,-5958.01157054,0.00021817,2]
[372470897,1752658239618,-983.05028867,0.00021821,2]
[372470899,1752658239628,-150.0,0.00021828,2]
[372470902,1752658239638,-983.05028867,0.00021829,2]
[372470904,1752658239649,-983.05028867,0.00021838,2]
[372470905,1752658239658,-150.0,0.00021839,2]
[372470907,1752658239669,-983.05028867,0.00021846,2]
[372470909,1752658239678,-983.05028867,0.00021854,2]
[372470912,1752658239688,-150.0,0.00021858,2]
[372470915,1752658239698,-350.0,0.00021858,2]
[372470917,1752658239708,-153.06,0.00021859,2]
[372470919,1752658239725,-299.89137058,0.00021859,2]
[372470921,1752658239737,-150.0,0.0002186,2]
[372470922,1752658239747,-54976.962895,0.00021869,2]
[372470924,1752658239756,-33601.1229894,0.00021869,2]
[372470927,1752658239766,-274.7888729,0.00021869,2]
[372470929,1752658239776,-20095.6403717,0.00021869,2]
[372470931,1752658239790,-153.06,0.0002187,2]
[372470933,1752658239799,-153.06,0.0002187,2]
[372470936,1752658239809,-153.06,0.0002187,2]
[372470939,1752658239818,-153.06,0.0002187,2]
[372470941,1752658239827,-153.06,0.0002187,2]
[372470943,1752658239836,-4236.4242957,0.0002187,4]
[372470945,1752658239846,-4320.06152741,0.0002187,4]
[372470947,1752658239856,-4628.4112438,0.0002187,4]
[372470949,1752658239865,-500.0,0.00021873,2]
[372470951,1752658239875,-500.93674537,0.00021873,2]
[372470953,1752658239885,-500.0,0.00021873,2]
[372470955,1752658239894,-500.0,0.00021873,2]
[372470957,1752658239903,-500.62068923,0.00021873,2]
[372470958,1752658239913,-500.0,0.00021873,2]
[372470960,1752658239922,-277.69805332,0.00021873,2]
[372470962,1752658239932,-500.0,0.00021873,2]
[372470964,1752658239941,-231.24889856,0.00021873,2]
[372470967,1752658239951,-500.0,0.00021873,2]
[372470969,1752658239961,-500.0,0.00021873,2]
[372470970,1752658239970,-500.0,0.00021873,2]
[372470972,1752658239981,-486.73665826,0.00021873,2]
[372470975,1752658239990,-500.0,0.00021873,2]
[372470977,1752658240002,-504.18779699,0.00021873,2]
[372470979,1752658240011,-210.53900669,0.00021873,2]
[372470981,1752658240021,-500.0,0.00021873,2]
[372470982,1752658240030,-500.0,0.00021873,2]
[372470984,1752658240040,-501.10542618,0.00021873,2]
[372470987,1752658240050,-503.02074306,0.00021873,2]
[372470988,1752658240060,-500.0,0.00021873,2]
[372470991,1752658240070,-500.0,0.00021873,2]
[372470992,1752658240084,-500.0,0.00021873,2]
[372470993,1752658240095,-502.04250254,0.00021873,2]
[372470994,1752658240105,-507.77655663,0.00021873,2]
[372470995,1752658240115,-500.0,0.00021873,2]
[372470996,1752658240124,-581.42247682,0.00021873,2]
[372470997,1752658240134,-150.0,0.00021874,2]
[372470998,1752658240143,-153.06,0.00021874,2]
[372470999,1752658240153,-150.0,0.00021876,2]
[372471000,1752658240163,-1089.5282362,0.00021878,5]
[372471001,1752658240172,-814.23863772,0.00021879,2]
[372471002,1752658240182,-155.242,0.00021879,2]